Cogmind - Beta 15 @@@ ROGUE MODE // 2025.08.06 @ 15:07:08 Player: Lyla Result: Destroyed by S-10 Pest with Light Assault Rifle Performance ------------- Evolutions (2) 1000 Regions Visited (3) 600 Robots Destroyed (34) 170 Value Destroyed (1274) 1274 Prototype IDs (2) 40 Alien Tech Used (0) 0 Bonus (44) 44 TOTAL SCORE: 3128 Bonus ------- High Alert Combat Kills 44 Cogmind --------- Core Integrity 0/550 Matter 161/300 Energy 192/265 System Corruption 0% Temperature Cool (0) Movement Treading (170) Location -8/Materials Parts ------- > --- POWER (1) -------- Improved Ion Engine > --- PROPULSION (4) --- Armored Treads Armored Treads > --- UTILITY (4) ------ (None) > --- WEAPON (2) ------- (None) > --- INVENTORY (5) ---- Assault Rifle Battle Rifle Peak State ------------ > --- POWER ------------ Subdweller Power Source > --- PROPULSION ------- Improved Treads Improved Treads Improved Treads Improved Treads > --- UTILITY ---------- High-capacity Storage Unit Visual Processing Unit Sensor Array Signal Interpreter > --- WEAPON ----------- Battle Rifle Battle Cannon > --- INVENTORY -------- Light Treads Light Treads Shield Generator Hacking Suite Trap Extractor Trap Extractor Trap Extractor Small Laser Small Laser Assault Rifle Assault Rifle Subdweller Shrapnel Launcher Datajack Mining Laser [Rating: 21] Favorites ----------- Power Subdweller Power Source Engine Subdweller Power Source Propulsion Improved Treads Treads Improved Treads Leg Aluminum Leg Utility High-capacity Storage Unit Device Structural Scanner Storage High-capacity Storage Unit Processor Signal Interpreter Hackware Hacking Suite Weapon Small Laser Energy Gun Small Laser Ballistic Gun Assault Rifle Ballistic Cannon Battle Cannon Launcher Grenade Launcher Special Weapon Mining Laser Build | -11 -10 -10 -8 ------- Run | Yrd Mat Sub Mat Slots Evolved 4 | . . . 4 Power . | . . . . Propulsion 2 | . . . 2 Utility 2 | . . . 2 Weapon . | . . . . Parts Attached 39 | 6 15 8 10 Power 4 | 1 1 1 1 Engine 4 | 1 1 1 1 Core . | . . . . Reactor . | . . . . Propulsion 14 | 2 6 2 4 Treads 12 | . 6 2 4 Leg 2 | 2 . . . Wheel . | . . . . Hover . | . . . . Flight . | . . . . Utility 10 | 1 3 2 4 Device 4 | . 1 1 2 Storage 3 | 1 2 . . Processor 2 | . . 1 1 Hackware 1 | . . . 1 Protection . | . . . . Artifact . | . . . . Weapon 11 | 2 5 3 1 Energy Gun 4 | 2 2 . . Energy Cannon . | . . . . Ballistic Gun 3 | . 2 1 . Ballistic Cannon 1 | . . 1 . Launcher 2 | . 1 . 1 Special Weapon 1 | . . 1 . Impact Weapon . | . . . . Slashing Weapon . | . . . . Piercing Weapon . | . . . . Special Melee Weapon . | . . . . Unidentified Prototypes . | . . . . Parts Lost 14 | . 5 1 8 Power 3 | . 2 . 1 Propulsion 5 | . 1 . 4 Utility 3 | . . 1 2 Weapon 3 | . 2 . 1 Highest Loss Streak 4 | . 2 1 4 To Critical Strikes . | . . . . Average Backups 13 | 1 10 15 10 Power . | . . . . Propulsion 3 | . 3 4 1 Utility 5 | . 3 6 3 Weapon 4 | . 3 4 5 Tool/Special . | . . . . Unused Backups 6 | . . 2 4 Power . | . . . . Propulsion . | . . . . Utility 5 | . . 2 3 Weapon . | . . . . Tool/Special 1 | . . . 1 Average Slot Usage (%) 86 | . 88 88 72 Engine 3 | . 5 2 4 Treads 27 | . 24 28 27 Device 7 | . 12 5 6 Storage 13 | . 14 14 6 Processor 6 | . . 8 13 Energy Gun 19 | . 20 23 1 Ballistic Gun 3 | . 4 2 4 Ballistic Cannon 1 | . . 1 4 Launcher 1 | . 2 . 2 Peak Build Rating 21 | 6 10 14 21 Average Rating 10 | 4 7 11 14 On Entrance 7 | . 6 10 14 Naked Turns 19 | . . . 19 Heaviest Build 51 | 12 43 50 51 Greatest Support 92 | 20 46 46 92 Greatest Overweight (x) 3 | 3 1 1 . Average Overweight (x) . | . . . . Largest Inventory Capacity 20 | 8 20 20 20 Average Capacity 17 | 7 14 20 16 Most Carried 20 | 4 17 20 15 Average Carried 14 | 1 10 17 10 Final Capacity 20 | 8 20 20 5 Final Carried 16 | 4 16 16 2 Class Distribution -------------------- 94% | Mutant 5% | Skirmisher Dominant Class ---------------- Mutant | -10/Materials Mutant | -10/Subcaves Skirmisher | -8/Materials Resources | -11 -10 -10 -8 ----------- Run | Yrd Mat Sub Mat Matter Collected 1012 | 208 125 431 248 Remotely 183 | . . . 183 Salvage Created 936 | . 204 275 457 Parts 61 | . 19 17 25 Haulers Intercepted 1 | . . . 1 Recyclers Shooed . | . . . . Parts Field Recycled . | . . . . Retrieved Matter . | . . . . Parts Self-Destructed 18 | . . 18 . Prevented . | . . . . Kills | -11 -10 -10 -8 ------- Run | Yrd Mat Sub Mat Combat Hostiles Destroyed 28 | . 6 7 15 Guns 11 | . 4 6 1 Cannons 1 | . . 1 . AOE 16 | . 2 . 14 Classes Destroyed 10 | . 5 1 4 Worker 1 | . 1 . . Builder 1 | . . . 1 Tunneler 1 | . 1 . . Hauler 1 | . . . 1 Operator 1 | . . . 1 Watcher 1 | . 1 . . Swarmer 5 | . 3 . 2 Grunt 15 | . 3 . 12 Sentry 1 | . . . 1 Subdweller 7 | . . 7 . Best Kill Streak 16 | . 4 2 16 Combat Bots Only 14 | . 4 2 14 Max Kills in Single Turn 4 | . 2 1 4 Gunslinging . | . . . . Exploded 4 | . 2 . 4 Melee . | . . . . Uniques/NPCs Destroyed . | . . . . Combat | -11 -10 -10 -8 -------- Run | Yrd Mat Sub Mat Hostile Shots Fired 304 | . 67 50 187 Missed 97 | . 15 17 65 Hits 207 | . 52 33 122 Projectile 207 | . 52 33 122 Critical Strikes 9 | . 1 2 6 Damage Taken 2878 | . 635 679 1564 Core 789 | . 84 149 556 Absorbed by Shields 4 | . . 4 . Core Remaining (%) 53 | 100 . 6 . Volleys Fired 114 | . 48 41 25 Largest 2 | . 2 2 2 Hottest 100 | . 80 100 73 Shots Fired 180 | . 74 76 30 Gun 141 | . 67 62 12 Cannon 16 | . . 11 5 Launcher 20 | . 7 . 13 Special 3 | . . 3 . Kinetic 74 | . 29 23 22 Thermal 97 | . 36 53 8 Explosive 7 | . 7 . . Electromagnetic 2 | . 2 . . Robot Hit Streak 15 | . 8 15 5 Robot Miss Streak 5 | . 5 2 3 Penetration Max . | . . . . Secondary Targets 1 | . . 1 . Max Gunslinging Chain 1 | . . 1 . Shots Hit Robots 102 | . 33 52 17 Core Hits 74 | . 16 19 39 Critical Kills . | . . . . Critical Parts Destroyed . | . . . . Critical Strikes 1 | . . . 1 Blast 1 | . . . 1 Melee Attacks . | . . . . Impact . | . . . . Slashing . | . . . . Piercing . | . . . . Sneak Attacks . | . . . . Combat Hostiles . | . . . . Follow-up Attacks . | . . . . Damage Inflicted 3037 | . 647 667 1723 Guns 1040 | . 439 527 74 Cannons 251 | . . 140 111 Explosions 1742 | . 204 . 1538 Melee . | . . . . Ramming 4 | . 4 . . Kinetic 2172 | . 241 250 1681 Thermal 657 | . 198 417 42 Explosive 204 | . 204 . . Electromagnetic . | . . . . Impact . | . . . . Slashing . | . . . . Piercing . | . . . . Highest Corruption . | . . . . Average Corruption . | . . . . Corruption Purged . | . . . . Corruption Blocked . | . . . . Overload Shots . | . . . . Overflow Damage 56 | . 18 . 38 Projectiles . | . . . . Explosions 56 | . 18 . 38 Melee . | . . . . Knockbacks 1 | . . 1 . Impact . | . . . . Kinetic 1 | . . 1 . Secondary . | . . . . Self-Inflicted Damage 37 | . . . 37 Shots 2 | . . . 2 Rammed 1 | . 1 . . Targets Rammed 1 | . 1 . . Kicked . | . . . . Crushed . | . . . . Highest Temperature 54 | . 54 . 42 Average Temperature 13 | . 14 . 9 Received Heat Transfer 1083 | . 369 66 648 Siege Activations . | . . . . Martial Activations . | . . . . Shielding Activations . | . . . . Robots Disrupted . | . . . . Combat Hostiles . | . . . . Robots Corrupted . | . . . . Combat Hostiles . | . . . . Parts Fried . | . . . . Impact Corruptions . | . . . . Robots Melted . | . . . . Combat Hostiles . | . . . . Parts Melted . | . . . . Heat Transferred 1500 | . 450 950 100 Parts Sabotaged . | . . . . Parts Stolen . | . . . . Parts Stripped . | . . . . Power Chain Reactions . | . . . . Alert | -11 -10 -10 -8 ------- Run | Yrd Mat Sub Mat Maximum Alert Level 2 | . . . 2 Low Security (%) 85 | 100 100 . 49 Level 1 . | . . . 3 Level 2 13 | . . . 47 Level 3 . | . . . . Level 4 . | . . . . Level 5 . | . . . . High Security . | . . . . Max Security . | . . . . Peak Influence 651 | . 118 . 651 Initial . | . . . . Average 97 | . 11 . 306 Influence Increases 1009 | . 249 . 760 Destroy 0b10 Robot/C 420 | . 120 . 300 Destroy 0b10 Robot/NC 30 | . 15 . 15 Destroy Leader 84 | . 32 . 52 Successful Hack 18 | . 9 . 9 Disable Machine 105 | . 15 . 90 Anti-Garrison Action 150 | . . . 150 Destroy Structure 142 | . 43 . 99 Lose Combat Pursuer 60 | . 15 . 45 Influence Decreases 423 | . 249 . 174 Time Decay 228 | . 124 . 104 Lost Part 87 | . 17 . 70 Purge Threat 108 | . 108 . . Squads Dispatched 8 | . 2 . 6 Investigation 1 | . . . 1 Extermination . | . . . . Reinforcement 4 | . 2 . 2 Assault 2 | . . . 2 Garrison 1 | . . . 1 Intercept . | . . . . Searches Triggered . | . . . . Construction Impeded 1 | . . . 1 Haulers Reinforced . | . . . . Active Scanning Responses . | . . . . Cargo Convoy Interrupts . | . . . . Stealth | -11 -10 -10 -8 --------- Run | Yrd Mat Sub Mat Distress Signals 6 | . 2 . 4 Communications Jammed . | . . . . Distress Signals . | . . . . Times Spotted 60 | . 12 7 41 Peak Tracking Total 25 | . 4 2 25 Tactical Retreats 3 | . 1 . 2 Traps | -11 -10 -10 -8 ------- Run | Yrd Mat Sub Mat Traps Triggered . | . . . . Indirectly . | . . . . Trap Hack Attempts . | . . . . Triggered . | . . . . Disarmed . | . . . . Reprogrammed . | . . . . Reused . | . . . . Traps Extracted . | . . . . Installed . | . . . . Triggered . | . . . . Machines | -11 -10 -10 -8 ---------- Run | Yrd Mat Sub Mat Machines Disabled 8 | . 1 . 7 Max in Single Turn 3 | . 1 . 3 Garrison Access 1 | . . . 1 Machines Repaired . | . . . . Machines Dismantled . | . . . . Machines Sabotaged . | . . . . Overloaded Fab Kills . | . . . . Hacking | -11 -10 -10 -8 --------- Run | Yrd Mat Sub Mat Machines Accessed 4 | . 2 . 2 Terminals 4 | . 2 . 2 Fabricators . | . . . . Repair Stations . | . . . . Recycling Units . | . . . . Scanalyzers . | . . . . Garrison Access . | . . . . Total Hacks 13 | . 7 . 6 Successful 8 | . 5 . 3 Failed 5 | . 2 . 3 Catastrophic 1 | . . . 1 Database Lockouts . | . . . . Manual . | . . . . Terminals 13 | . 7 . 6 Fabricators . | . . . . Repair Stations . | . . . . Recycling Units . | . . . . Scanalyzers . | . . . . Garrison Access . | . . . . Terminal Hacks 8 | . 5 . 3 Record 2 | . 2 . . Prototype ID Bank 1 | . 1 . . Terminal Index 1 | . . . 1 Unreport Threat 1 | . 1 . . Locate Traps 1 | . . . 1 Patrol Status 1 | . 1 . . Zone Layout 1 | . . . 1 Fabricator Hacks . | . . . . Repair Station Hacks . | . . . . Recycling Unit Hacks . | . . . . Scanalyzer . | . . . . Garrison Access Hacks . | . . . . Unauthorized Hacks . | . . . . Terminals . | . . . . Fabricators . | . . . . Repair Stations . | . . . . Recycling Units . | . . . . Scanalyzers . | . . . . Garrison Access . | . . . . Data Cores Recovered 1 | . . . 1 Used . | . . . . Hacking Detections 3 | . 1 . 2 Full Trace Events 1 | . . . 1 Feedback Events . | . . . . Feedback Blocked . | . . . . Robot Schematics Acquired . | . . . . Robots Built . | . . . . Authchips . | . . . . Time . | . . . . Total Robot Build Rating . | . . . . Part Schematics Acquired . | . . . . Parts Built . | . . . . Authchips . | . . . . Time . | . . . . Total Part Build Rating . | . . . . Parts Repaired . | . . . . Time . | . . . . Parts Recycled . | . . . . Recycled Matter . | . . . . Retrieved Matter . | . . . . Retrieved Components . | . . . . Parts Scanalyzed . | . . . . Part Schematics Acquired . | . . . . Parts Damaged . | . . . . Bothacking | -11 -10 -10 -8 ------------ Run | Yrd Mat Sub Mat Used RIF Installer . | . . . . Robots Hacked . | . . . . Non-combat . | . . . . Combat . | . . . . Robot Hacks Applied . | . . . . Relay Couplers Released 2 | . . . 2 Machine Destruction 2 | . . . 2 Fabnet Peak Effective % . | . . . . Robots Rewired . | . . . . Allies Hacked . | . . . . Hacks Repelled . | . . . . Allies | -11 -10 -10 -8 -------- Run | Yrd Mat Sub Mat Total Allies . | . . . . Largest Group . | . . . . Highest-Rated Group . | . . . . Highest-Rated Ally . | . . . . Total Orders . | . . . . Ally Attacks . | . . . . Total Damage . | . . . . Kills . | . . . . Allies Corrupted . | . . . . Allies Melted . | . . . . Intel | -11 -10 -10 -8 ------- Run | Yrd Mat Sub Mat Active Infowar (turns) 894 | . 612 47 235 Optics 234 | . . . 234 Sensors 211 | . . . 211 Structural 659 | . 612 47 . Robot Analysis Total . | . . . . Derelict Logs Recovered 2 | . . 2 . Drone Launches . | . . . . Drone Recoveries . | . . . . Exploration | -11 -10 -10 -8 ------------- Run | Yrd Mat Sub Mat Turns Passed 2499 | 64 653 1483 299 Spaces Moved 1123 | 46 229 654 194 Core 95 | 14 . . 81 Treads 952 | . 185 654 113 Legs 76 | 32 44 . . Wheels . | . . . . Hover . | . . . . Flight . | . . . . Fastest Speed 50 | 50 120 160 50 Average Speed 158 | 112 161 173 114 Slowest Speed 240 | 200 240 240 170 Overloaded Moves . | . . . . Propulsion Burnouts . | . . . . Robots Hopped . | . . . . Potential Cave-ins . | . . . . Cave-ins Triggered . | . . . . Exploration Rate (%) 21 | 4 33 27 21 Regions Visited 3 Branch Regions 1 Pre-discovered Areas 1 | . . 1 . Known Exits Taken 1 | . . 1 . Unknown Exits Taken 2 | 1 1 . . Scrap Searched 3 | . . 3 . Spaces Dug 7 | . 7 . . Terrain Destroyed 158 | . 40 . 118 Melee . | . . . . Projectile . | . . . . AOE 158 | . 40 . 118 Terrain Rammed . | . . . . Walls Destroyed . | . . . . Machines Disabled . | . . . . Actions | -11 -10 -10 -8 --------- Run | Yrd Mat Sub Mat Total 1649 | 55 435 918 241 Wait 309 | . 113 196 . Move 1120 | 45 228 653 194 Hop . | . . . . Pick Up 39 | 4 22 8 5 Fast Attach 10 | 6 1 1 2 Attach 15 | . 4 1 10 Detach . | . . . . Swap 23 | . 11 11 1 Drop 18 | . 7 7 4 Fire 114 | . 48 41 25 Melee . | . . . . Ram . | . . . . Kick . | . . . . Crush 1 | . 1 . . Escape Stasis . | . . . . Rewire . | . . . . Trap . | . . . . Miscellaneous . | . . . . Route ------- -11/Scrapyard -10/Materials (discovered 2 exits: [*Mat] / [*Sub]) -10/Subcaves -8/Materials History --------- Turn | Location | Event 17 | -11/Scrapyard | Discovered new exit (range 15) 65 | -11/Scrapyard | Entered Materials 235 | -10/Materials | Discovered new exit (range 9) 318 | -10/Materials | Build established: Mutant 566 | -10/Materials | Discovered new exit (range 16) 718 | -10/Materials | Entered Subcaves 719 | -10/Subcaves | Approached by a straggling Scientist 734 | -10/Subcaves | Learned Materials machine intel 781 | -10/Subcaves | Core integrity fell below 50% 1615 | -10/Subcaves | A swath of the cavern ceiling suddenly collapsed 1676 | -10/Subcaves | Shifting Twisted Machinery released Sub. Shrapnel Launcher 1810 | -10/Subcaves | Disturbed a concealed Subdweller 1889 | -10/Subcaves | Core integrity fell below 20% 2162 | -10/Subcaves | Discovered new exit (range 5) 2181 | -10/Subcaves | Learned location of Storage (-9) 2198 | -10/Subcaves | Identified exit to Materials 2201 | -10/Subcaves | Entered Materials 2201 | -8/Materials | Evolved 4 slots: Propulsion x2, Utility x2 2202 | -8/Materials | Loaded intel: 58 machine locations 2349 | -8/Materials | Garrison activated, responded to threat 2368 | -8/Materials | Lost 4 parts (1p2n1w) 2389 | -8/Materials | Destroyed 14 combat bots 2438 | -8/Materials | Released all parts (8) 2459 | -8/Materials | Core integrity fell below 50% 2479 | -8/Materials | Core integrity fell below 20% 2500 | -8/Materials | Destroyed by S-10 Pest with Light Assault Rifle Last Messages --------------- Acquired Arm. Treads. Acquired 25 matter. Acquired 27 matter. Acquired 20 matter. Acquired 1 matter. Acquired 110 matter. [Achievement: Use The Force] U-05 Engineer lays Concrete. The unstable cave ceiling collapses. I-25 Savior crushed by falling debris. Dropped Datajack. Acquired Imp. Ion Engine. M-28 Smith repairs S-10 Pest. Hpw. Tractor Beam destroyed. Critical hit (Burn: +37). M-13 Machinist repairs G-47 Trooper. [Achievement: Hunted] Dropped Imp. Ion Engine. Acquired Imp. Ion Engine. W-25 Informer sends out distress signal. Map ----- +----------------------------------------------------+ | ????????????????????????????# T [ [ | | ????????????????????????????# " %= | | ????????????????????????????# "" [= | | ????????????????????????????# * = | | ????????????????????????????#######" # # | | ??????????????????????????????????## # " # # # | | ??????????????????"""??????????????# # %=# # # | | ??????????????????"""??????????????### [ ##### # | | ????T?????????????"""???????????????## = | | ????????????????????????????????????## / | | ????????????????????????????????????## | | ???????????????????????????????????# # | | ???????????????????????????????????### //[[ | | ????????"""?????????????????????????## | | ????????"""??????############???????## = | | ????????"""??????# "T" #???????## | | ?????????????????# #???????## " | | ???????????????? # #???????## " #= | | ???????????????? / #????????# "## | | ?????????????????# #????????# ## | | ?????????????????# #????????#!! | | ?????????????????# ##########bk | | ??????????""""???# """ss g bm | | ??????????""""???# """ s s s sgg | | ??????????""""???# """ s | | ?????????????????# @ #############+####### | | ?????????????????# #?????????# #??# | | ?????????????"""?# """ #?????????# "" #### | | ?????????????"""?# """ #?????????# """ / | | ?????????????"""?# """ #?????????# S" ## | | ?????????????????# #?????????# ## ## | | ?????????????????# #?????????# ## ## | | ?????????"?"?????+ """ #?????????######### ## | | ?????????"R"?????# ??""" #?????????????????# ## | | ?????????"""?????#?????""" #?""??"""?????????# ## | | ????????????????????????? +?"T??"""?????????# ## | | ????????????????????????? #?""??"""?????????# ## | | ????????????????????????? #?????????????????# ## | | ????????????????????????? ??????????????????# ## | | ????????????????????????? ??????????????????? ?? | | ?????????????????????????? ??????????????????? ?? | | ??????????????????????????????????????????????? ?? | | ??????????????????????????????????????????????? ?? | | ??????????????????????????????????????????????? ?? | | ????????????????????????????????????????"""???? ?? | | ????????????????????????????????????????"""???? ?? | | "???????????????????????????????????????"""??????? | | "????????????????????????????????????????????????? | | "????????????????????????"""""???????????????????? | | ?????????????????????????""T""???????????????????? | +----------------------------------------------------+ Best States ------------- Heat Dissipation 31 Energy Generation 15 Energy Capacity 265 Matter Stores 300 Matter Capacity 300 Sight Range 18 Robot Scan Range 14 Terrain Scan Density 10 Evasion (%) 55 Recoil Reduction 4 Offensive Hacking 10 Item Schematics ----------------- None Robot Schematics ------------------ None Fabricated ------------ Nothing Repaired ---------- Nothing Alien Tech Used ----------------- None Achievements -------------- Close Call Hunted Oops Troublemaker Use The Force Challenges ------------ None Game ------ Seed LinkedSignalFalx Manual? 0 Play Time 00:26:51 Cumulative 4.6 hours Start 2025.08.06 @ 14:40:19 End 2025.08.06 @ 15:07:08 Sessions 1 Manual Loads 0 Difficulty Rogue Special Mode None Game No. 7 Rogue 7 Adventurer 0 Explorer 0 Win Type - Total 0 Types 0/0/0/0/0/0/0/0/0/0 Lore% 6 Gallery% 8 Achievement% 10 Wizard Run 0 Options --------- Layout 1 ASCII 0 Keyboard 0 Movement Mouse Keybinds 0 Fullscreen 1 Font 24/X11 Map View 50x35 Zoom Use 0% Tactical HUD 0 Map Filters NONE Filters NONE Steam 1 RUN: ad691432-d91c-4007-a311-41b496719c80